[Event "German Bundesliga 2022-23"]
[Site "Germany"]
[Date "2022.10.22"]
[Round "1"]
[White "Van Foreest, Lucas"]
[Black "Dardha, Daniel"]
[Result "1/2-1/2"]
[ECO "E32"]
[WhiteElo "2568"]
[BlackElo "2610"]
[Annotator "TA"]
[PlyCount "60"]
[EventDate "2022.10.21"]
[EventType "team-tourn"]
[EventCountry "GER"]
[SourceTitle "playchess.com"]
[Source "ChessBase"]
[SourceQuality "1"]
[TimeControl "40/6000+30:3000+30"]

{[%evp 13,60,0,0,0,0,0,0,0,0,0,0,0,0,0,0,0,0,0,0,0,0,4,0,0,2,2,2,2,1,0,0,0,0,0,0,0,0,0,0,0,0,0,0,0,0,0,0,0,0]} 1. d4 {[%emt 0:00:40]} Nf6 {[%emt 0:00:34]} 2. c4 {[%emt 0:00:29]} e6 {[%emt 0:00:06]} 3. Nc3 {[%emt 0:00:49]} Bb4 {[%emt 0:00:25]} 4. Qc2 {[%emt 0:01:40]} O-O {[%emt 0:04:29]} 5. e4 {[%emt 0:01:23][%cal Be2e4,Be4e5][%mdl 32]} d5 {[%emt 0:00:18]} 6. e5 {[%emt 0:00:05]} Ne4 {[%emt 0:00:09]} 7. Bd3 {[%emt 0:00:24]} c5 {[%emt 0:00:13] The position is equal.} 8. Nf3 {[%emt 0:00:13] E32: Nimzo-Indian: Classical (4 Qc2): 4...0-0.} cxd4 {[%emt 0:00:10]} 9. Nxd4 {[%emt 0:00:09]} Nd7 {[%emt 0:00:26]} 10. Bf4 {[%emt 0:00:14]} Qh4 {[%emt 0:00:20]} 11. g3 {[%emt 0:00:05]} Qh5 {[%emt 0:00:06]} 12. O-O {[%emt 0:00:08]} g5 {[%emt 0:00:29]} 13. cxd5 {[%emt 0:01:35]} Bxc3 {[%emt 0:01:04]} 14. bxc3 {[%emt 0:00:33]} exd5 {[%emt 0:00:08]} 15. Be3 {[%emt 0:00:51] And now f3 would win.} Nxe5 {[%emt 0:00:16] Threatens to win with ...Ng4.} 16. f3 {[%emt 0:00:36] Against Ng4} ({Much weaker is} 16. Bxe4 dxe4 17. Qxe4 Re8 $11) 16... Nc5 {[%emt 0:03:08]} 17. Bf5 {[%emt 0:00:24]} f6 {[%emt 0:01:21] 17...Ne6 gains popularity.} 18. h4 {[%emt 0:01:03]} g4 {[%emt 0:09:10]} 19. fxg4 {[%emt 0:02:17]} Nxg4 {[%emt 0:01:47] Pair of Knights!} 20. Qd1 {[%emt 0:02:08] Strongly threatening Rf4.} Kh8 $1 {[%emt 0:02:31] [#]} 21. Ne6 $1 {[%emt 0:00:51]} Bxe6 {[%emt 0:01:41]} 22. Qxg4 {[%emt 0:00:06] The board is on fire.} Qxg4 {[%emt 0:00:09]} 23. Bxg4 {[%emt 0:00:02]} Bxg4 {[%emt 0:01:22]} 24. Bxc5 {[%emt 0:00:04]} Rf7 {[%emt 0:00:10]} 25. Bd4 {[%emt 0:00:05]} Kg8 {[%emt 0:00:32]} 26. Rxf6 {[%emt 0:00:07]} Rxf6 {[%emt 0:00:08]} 27. Bxf6 {[%emt 0:00:02]} Rf8 {[%emt 0:00:15] [#]} 28. Rf1 $146 {[%emt 0:01:27]} ({Predecessor:} 28. Bd4 Rf3 29. Kg2 Rd3 30. Re1 Bf3+ {½-½ (30) Celestini,M (2346)-Salati,P (2306) ICCF email 2020}) 28... a6 {[%emt 0:00:20]} 29. Bd4 {[%emt 0:00:27]} Rxf1+ {[%emt 0:00:09]} 30. Kxf1 {[%emt 0:00:04]} h5 {[%emt 0:00:06] An even fight not without its subleties.  Weighted Error Value: White=0.00 (flawless) /Black=0.00 (flawless)} 1/2-1/2

[Event "German Bundesliga 2022-23"]
[Site "Germany"]
[Date "2022.10.22"]
[Round "1"]
[White "Hracek, Zbynek"]
[Black "Hausrath, Daniel"]
[Result "1-0"]
[ECO "B36"]
[WhiteElo "2542"]
[BlackElo "2465"]
[Annotator "TA"]
[PlyCount "101"]
[EventDate "2022.10.21"]
[EventType "team-tourn"]
[EventCountry "GER"]
[SourceTitle "playchess.com"]
[Source "ChessBase"]
[SourceQuality "1"]
[TimeControl "40/6000+30:3000+30"]

{[%evp 22,101,53,38,60,54,65,54,63,47,77,72,65,59,52,39,43,44,63,68,57,69,56,57,44,51,73,68,70,65,70,71,62,63,67,72,94,93,106,102,105,102,110,104,88,79,142,129,120,90,151,114,120,120,129,89,89,87,83,75,119,119,119,119,207,206,444,444,444,439,466,466,458,444,444,429,431,391,1445,538,461,400]} 1. e4 {[%emt 0:00:03]} c5 {[%emt 0:00:23]} 2. Nf3 {[%emt 0:00:13]} Nc6 {[%emt 0:00:13]} 3. d4 {[%emt 0:05:39]} cxd4 {[%emt 0:00:17]} 4. Nxd4 {[%emt 0:00:02]} g6 {[%emt 0:01:04]} 5. c4 {[%emt 0:00:12]} Nf6 {[%emt 0:04:48]} 6. Nc3 {[%emt 0:00:16]} d6 {[%emt 0:01:58]} 7. Be2 {[%emt 0:00:05]} Nxd4 {[%emt 0:00:08]} 8. Qxd4 {[%emt 0:00:05]} Bg7 {[%emt 0:00:08]} 9. Be3 {[%emt 0:05:01]} O-O {[%emt 0:03:43]} 10. Qd3 {[%emt 0:01:11]} Be6 {[%emt 0:03:25] 10...a5 injects fresh life into this line.} 11. Bd4 {[%emt 0:04:49]} Qa5 {[%emt 0:09:52]} 12. O-O {[%emt 0:00:54]} Rfc8 {[%emt 0:13:19] B36: Sicilian: Maroczy Bind: Gurgenidze System.} 13. b3 {[%emt 0:00:27]} Nd7 {[%emt 0:05:47]} 14. Bxg7 {[%emt 0:02:11]} Kxg7 {[%emt 0:00:28] White is slightly better.} 15. f4 {[%emt 0:00:32]} Nf6 {[%emt 0:03:55]} 16. Kh1 {[%emt 0:16:08]} a6 {[%emt 0:04:59][%cal Ob7b5] [#]} 17. f5 $146 {[%emt 0:18:22]} ({Predecessor:} 17. a4 Bd7 18. Rae1 Bc6 19. Bd1 Rd8 20. Re3 Qc5 21. Nd5 Bxd5 22. exd5 b5 23. Rxe7 bxa4 {½-½ (73) Smejkal,J (2510)-Levchenkov,V (2310) Lubniewice 1994}) 17... Bd7 {[%emt 0:03:12]} 18. fxg6 {[%emt 0:04:28]} hxg6 {[%emt 0:08:13]} 19. Nd5 {[%emt 0:00:08] [#] Hoping for Qd4.} Bc6 {[%emt 0:25:23]} 20. Nxe7 {[%emt 0:06:56]} ({Much worse is} 20. Nxf6 exf6 21. Rad1 (21. Qxd6 Qg5 $11) 21... Re8 $11) 20... Bxe4 {[%emt 0:00:43]} 21. Qxd6 {[%emt 0:09:42]} Qg5 {[%emt 0:01:39][%csl Ge4][%cal Rg5g2]} 22. Qxf6+ $1 {[%emt 0:01:20]} Qxf6 {[%emt 0:00:07]} 23. Rxf6 {[%emt 0:00:02]} Re8 {[%emt 0:02:51]} 24. Rd6 {[%emt 0:01:12] Black must now prevent Rd7.} Rxe7 {[%emt 0:00:06]} 25. Bf1 {[%emt 0:00:26]} a5 {[%emt 0:01:57]} 26. Kg1 {[%emt 0:03:05]} Bc6 {[%emt 0:01:25]} 27. Rad1 {[%emt 0:04:04]} Rh8 {[%emt 0:03:00]} 28. a3 {[%emt 0:04:37][%cal Ba2a3,Ba3b4,Bb4b5][%mdl 32]} Rh5 {[%emt 0:03:44]} 29. b4 {[%emt 0:01:24]} Rg5 {[%emt 0:01:41][%cal Oc6g2]} 30. g3 {[%emt 0:05:58]} axb4 {[%emt 0:03:26]} 31. axb4 {[%emt 0:00:02]} Rf5 {[%emt 0:00:56]} 32. b5 {[%emt 0:09:31]} Bf3 {[%emt 0:00:52]} 33. Rd7 {[%emt 0:03:09]} Ree5 {[%emt 0:01:00]} (33... Re3 $142) 34. Rc1 $16 {[%emt 0:00:38]} g5 {[%emt 0:01:20]} 35. h3 {[%emt 0:04:01]} Be4 {[%emt 0:00:55]} (35... b6 $142) 36. Rc3 {[%emt 0:00:59]} Bf3 {[%emt 0:00:47]} 37. Rd2 {[%emt 0:00:23] White is more active.} g4 {[%emt 0:00:26]} 38. hxg4 {[%emt 0:00:30]} Bxg4 {[%emt 0:00:04]} 39. Rf2 {[%emt 0:00:33]} Rg5 {[%emt 0:00:30]} 40. Bg2 {[%emt 0:00:38]} Re1+ {[%emt 0:01:12]} 41. Rf1 {[%emt 0:50:26]} Re7 {[%emt 0:07:36]} 42. c5 {[%emt 0:00:00]} b6 {[%emt 0:05:01]} (42... Be6 $16 43. Rb1 Bd5) 43. Rb1 $18 {[%emt 0:00:00]} Rxc5 {[%emt 0:27:14]} (43... Rc7) 44. Rxc5 {[%emt 0:00:00]} bxc5 {[%emt 0:00:02][%mdl 4096] Endgame KRB-KRB} 45. b6 {[%emt 0:00:00] [#] Strongly threatening b7.} Bc8 {[%emt 0:00:03]} 46. b7 {[%emt 0:00:00]} Bxb7 {[%emt 0:00:17]} 47. Rxb7 {[%emt 0:00:00]} ({Less strong is} 47. Bxb7 Rc7 48. Bd5 c4 $18) 47... Re5 {[%emt 0:00:05]} 48. Rd7 {[%emt 0:00:00]} Kg6 {[%emt 0:00:34]} 49. Kf2 {[%emt 0:00:00]} Re8 $2 {[%emt 0:08:58]} (49... c4 50. Rc7 Ra5 51. Rxc4 Kf5 52. Rf4+ Kg6) 50. Bd5 {[%emt 0:00:00]} Rf8 {[%emt 0:00:01]} 51. Rc7 {[%emt 0:00:00] Weighted Error Value: White=0.05 (flawless) /Black=0.21 (precise)} 1-0

[Event "German Bundesliga 2022-23"]
[Site "Germany"]
[Date "2022.10.22"]
[Round "1"]
[White "Handke, Florian"]
[Black "Zelcic, Robert"]
[Result "1-0"]
[ECO "B12"]
[WhiteElo "2526"]
[BlackElo "2495"]
[Annotator "TA"]
[PlyCount "107"]
[EventDate "2022.10.21"]
[EventType "team-tourn"]
[EventCountry "GER"]
[SourceTitle "playchess.com"]
[Source "ChessBase"]
[SourceQuality "1"]
[TimeControl "40/6000+30:3000+30"]

{[%evp 9,107,0,0,0,5,8,0,-6,-5,-8,21,10,15,17,36,30,39,12,15,9,6,0,19,20,37,37,36,35,25,33,33,23,28,31,40,0,25,22,30,25,80,77,86,98,85,95,142,153,151,141,141,127,181,154,200,108,99,95,101,105,130,145,214,130,292,265,329,346,342,333,348,343,432,430,417,425,425,383,392,407,533,533,530,530,533,522,788,754,720,538,1235,1182,29963,29963,29975,29976,29978,29979,29978,29979]} 1. e4 {[%emt 0:00:01]} c6 {[%emt 0:00:04]} 2. d4 {[%emt 0:00:04]} d5 {[%emt 0:00:03]} 3. e5 {[%emt 0:00:05]} c5 {[%emt 0:00:03]} 4. Nf3 {[%emt 0:00:10]} cxd4 {[%emt 0:00:05]} 5. Qxd4 {[%emt 0:00:17]} Nc6 {[%emt 0:00:05][%cal Bb8c6,Bc6b4,Bb4d3][%mdl 32]} 6. Qf4 {[%emt 0:00:07] B12: Caro-Kann: Advance Variation.} e6 {[%emt 0:00:04]} 7. Bd3 {[%emt 0:00:11]} Nb4 {[%emt 0:00:21]} 8. Bd2 {[%emt 0:00:33] The position is equal.} Nxd3+ {[%emt 0:01:27]} 9. cxd3 {[%emt 0:00:06] [#]} Nh6 $146 {[%emt 0:01:21]} ({Predecessor:} 9... f5 10. Nc3 Bd7 11. Ne2 Qb6 12. O-O Ne7 13. Qg3 Rc8 14. Bc3 h6 15. Nf4 Kf7 {1-0 (32) Pijpers,A (2455)-Wiersma,E (2300) Hilversum 2022}) 10. O-O {[%emt 0:02:14]} Be7 {[%emt 0:00:35]} 11. Bb4 {[%emt 0:01:58]} O-O {[%emt 0:01:11]} 12. Bxe7 {[%emt 0:00:47]} Qxe7 {[%emt 0:00:15]} 13. Nc3 {[%emt 0:02:02]} Bd7 {[%emt 0:00:17]} 14. a3 {[%emt 0:04:26]} Nf5 {[%emt 0:13:22]} 15. Rac1 {[%emt 0:05:04]} Rac8 {[%emt 0:00:56]} 16. Ne2 {[%emt 0:10:36]} Bb5 {[%emt 0:04:46]} 17. Qd2 {[%emt 0:00:15]} b6 {[%emt 0:10:55]} 18. Ned4 {[%emt 0:02:22]} Nxd4 {[%emt 0:00:13]} 19. Nxd4 {[%emt 0:00:04]} Bd7 {[%emt 0:00:05]} 20. b4 {[%emt 0:03:41]} h6 {[%emt 0:01:02]} 21. g3 {[%emt 0:02:11]} f6 {[%emt 0:13:59]} 22. Rfe1 {[%emt 0:21:10]} fxe5 {[%emt 0:06:46]} 23. Rxe5 {[%emt 0:00:41]} Qf6 {[%emt 0:00:46]} 24. Rce1 {[%emt 0:01:15][%cal Bc1e1,Be1e3,Be3f3][%mdl 32]} Rfe8 {[%emt 0:04:02]} (24... Rc1 $11 {keeps the balance.} 25. f4 (25. Qxc1 Qxf2+ 26. Kh1 Qxd4 $11) (25. Rxc1 Qxe5 26. Qe3 Qxe3 $11) (25. Nxe6 $2 Rxe1+ 26. Qxe1 Re8 $19) 25... Rxe1+ 26. Qxe1 Rc8) 25. R1e3 $16 {[%emt 0:14:40]} Kh7 {[%emt 0:01:41]} 26. Kg2 {[%emt 0:02:51]} Qg6 {[%emt 0:06:06]} 27. h3 {[%emt 0:05:36]} Rc7 {[%emt 0:10:16]} (27... a6 $142) 28. Rf3 {[%emt 0:04:41]} Rec8 {[%emt 0:04:47]} 29. Qe2 {[%emt 0:18:06][%cal Rd4e6] White is more active.} Re8 {[%emt 0:15:17]} 30. Qe1 {[%emt 0:03:18] Inhibits Rc1.} Kg8 {[%emt 0:00:27]} (30... Rcc8 $16 {might work better.}) 31. b5 {[%emt 0:00:52]} Bc8 {[%emt 0:08:06] [#]} (31... Rcc8 $16 32. Rfe3 Rcd8) 32. a4 {[%emt 0:00:40]} (32. h4 $1 $18) 32... Rf7 {[%emt 0:00:19]} 33. Rfe3 {[%emt 0:01:24]} Ref8 {[%emt 0:00:43]} 34. f3 {[%emt 0:01:45][%cal Rd4e6]} Rf6 {[%emt 0:01:08]} 35. Qe2 {[%emt 0:01:37]} Qf7 {[%emt 0:04:55]} (35... Re8 $16 36. Rxd5 Qf7) 36. h4 {[%emt 0:01:03][%cal Rd4e6]} Bd7 $2 {[%emt 0:00:14] A mistake that costs the game.} (36... Re8 $16 37. Rxd5 Bb7) 37. Nxe6 $18 {[%emt 0:00:34]} Rxe6 {[%emt 0:00:16]} 38. Rxe6 {[%emt 0:00:05]} Bxe6 {[%emt 0:00:02]} 39. Rxe6 {[%emt 0:00:03][%mdl 4096] Endgame KQR-KQR} Rc8 {[%emt 0:00:05]} 40. Re7 {[%emt 0:01:27]} Rc2 {[%emt 0:02:31]} 41. Rxf7 {[%emt 0:12:26]} ({Not} 41. Qxc2 Qxe7 42. d4 (42. Qc8+ Kh7 $16) 42... Qf6 $16) 41... Rxe2+ {[%emt 0:00:02] KR-KR} 42. Kf1 {[%emt 0:00:05]} Re3 {[%emt 0:00:04]} 43. Kf2 {[%emt 0:00:10]} Rxd3 {[%emt 0:00:25]} 44. Rxa7 {[%emt 0:00:10]} Ra3 {[%emt 0:00:10]} 45. h5 {[%emt 0:05:58]} d4 {[%emt 0:02:14]} 46. f4 {[%emt 0:08:45][%cal Oa4a5]} Ra2+ {[%emt 0:01:55]} 47. Kf3 {[%emt 0:00:09][%cal Oa4a5] [#] a5! is the strong threat.} Ra3+ {[%emt 0:00:03]} 48. Ke4 {[%emt 0:03:12]} d3 {[%emt 0:01:06]} 49. Ke3 {[%emt 0:01:34][%cal Oa4a5] Hoping for a5!} d2+ {[%emt 0:00:27]} 50. Kxd2 {[%emt 0:00:08][%cal Oa4a5] aiming for a5!} Rxg3 {[%emt 0:00:04]} 51. a5 {[%emt 0:02:48] White mates.} bxa5 {[%emt 0:02:15]} 52. b6 {[%emt 0:00:41][%cal Bb5b6,Bb6b7][%mdl 32]} Rb3 {[%emt 0:00:09]} 53. b7 {[%emt 0:00:05]} Kh7 {[%emt 0:00:20]} 54. f5 {[%emt 0:00:06] Weighted Error Value: White=0.08 (flawless) /Black=0.33} 1-0

[Event "German Bundesliga 2022-23"]
[Site "Germany"]
[Date "2022.10.22"]
[Round "1"]
[White "Palac, Mladen"]
[Black "Van Wely, Loek"]
[Result "0-1"]
[ECO "B46"]
[WhiteElo "2516"]
[BlackElo "2629"]
[Annotator "TA"]
[PlyCount "78"]
[EventDate "2022.10.21"]
[EventType "team-tourn"]
[EventCountry "GER"]
[SourceTitle "playchess.com"]
[Source "ChessBase"]
[SourceQuality "1"]
[TimeControl "40/6000+30:3000+30"]

{[%evp 11,78,18,21,23,35,12,48,22,23,18,20,24,23,28,24,13,51,45,50,48,46,49,56,43,47,47,47,25,37,6,32,-74,-81,-308,-314,-325,-316,-304,-310,-293,-255,-247,-196,-177,-192,-297,-288,-359,-292,-290,-257,-238,-183,-454,-430,-446,-490,-730,-745,-1148,-1042,-29978,-29975,-6287,-1374,-1319,-1318,-1177,-944]} 1. e4 {[%emt 0:00:02]} c5 {[%emt 0:00:07]} 2. Nf3 {[%emt 0:00:05]} e6 {[%emt 0:00:08]} 3. d4 {[%emt 0:00:04]} cxd4 {[%emt 0:00:06]} 4. Nxd4 {[%emt 0:00:03]} Nc6 {[%emt 0:00:11]} 5. Nc3 {[%emt 0:00:08]} a6 {[%emt 0:00:15]} 6. Bf4 {[%emt 0:00:20]} d6 {[%emt 0:02:04] Strongly threatening ...Nxd4.} 7. Nxc6 {[%emt 0:00:36] 7.Nxc6 is better than 7.Bg3. B46: Sicilian: Taimanov: 5 Nc3 a6.} bxc6 {[%emt 0:00:06]} 8. Qd2 {[%emt 0:00:02]} e5 {[%emt 0:02:45]} 9. Bg3 {[%emt 0:00:04] White is slightly better.} (9. Bg5 $5 {[%cal Rg5d8]} Nf6 10. Be2 $14) 9... Nf6 {[%emt 0:01:04]} 10. O-O-O {[%emt 0:00:36][%cal Og3e5]} Be7 {[%emt 0:03:50]} 11. Bc4 {[%emt 0:00:39]} O-O {[%emt 0:01:30] [#]} 12. Bh4 $146 {[%emt 0:16:30]} ({Predecessor:} 12. Kb1 Be6 13. Bb3 Nd7 14. f4 exf4 15. Bxf4 Ne5 16. Ne2 c5 17. Bxe6 fxe6 18. Bxe5 dxe5 {0-1 (27) Ponkratov,P (2621)-Grachev,B (2621) Sochi 2019}) 12... Be6 {[%emt 0:13:24]} 13. Bb3 {[%emt 0:01:55]} a5 {[%emt 0:08:58][%cal Oa5a4]} 14. Bxf6 {[%emt 0:14:08]} gxf6 {[%emt 0:00:45]} 15. f4 {[%emt 0:26:03]} exf4 {[%emt 0:01:24]} 16. Qxf4 {[%emt 0:03:23]} Kh8 {[%emt 0:02:50]} 17. Kb1 {[%emt 0:10:08]} Rg8 {[%emt 0:02:48]} 18. Rd2 {[%emt 0:03:16]} Rb8 {[%emt 0:11:37]} 19. Rf1 {[%emt 0:03:54]} Rb4 {[%emt 0:02:54]} 20. Qf3 {[%emt 0:00:47]} Qb8 {[%emt 0:09:28][%cal Oa5a4]} 21. Ne2 {[%emt 0:03:12]} (21. Ka1 $14 {keeps the upper hand.}) 21... a4 $1 $17 {[%emt 0:07:27]} 22. c3 $2 {[%emt 0:00:58] Loses the game.} (22. a3 $17 Rb5 23. Bxe6 Rxb2+ 24. Ka1 fxe6 25. Nd4) 22... Rxb3 $19 {[%emt 0:02:39]} (22... axb3 23. cxb4 bxa2+ 24. Ka1 $11) 23. axb3 {[%emt 0:00:01]} axb3 {[%emt 0:03:22]} 24. c4 {[%emt 0:15:38]} Bxc4 {[%emt 0:03:48] And now ...Qa7 would win.} 25. Rfd1 {[%emt 0:01:49]} c5 {[%emt 0:11:04]} 26. Nc3 {[%emt 0:03:03][%cal Od2d6]} Be6 $40 {[%emt 0:04:41][%mdl 128] Black has strong attack.} 27. Nd5 {[%emt 0:01:53] [#]} Bf8 {[%emt 0:01:56]} (27... Bg4 28. Qc3 Qa7 29. Qxb3 $17) 28. Qc3 {[%emt 0:00:50]} ({Don't blunder} 28. Nxf6 $2 Qa7 29. Qd3 c4 $19) ({Wrong is} 28. Qxf6+ $2 Bg7 29. Qf3 {[#]} Bg4 $1 $19) (28. g3 {was called for.}) 28... Bg7 {[%emt 0:01:03] Threatens to win with ...f5.} 29. Qc4 {[%emt 0:01:21]} f5 {[%emt 0:03:48]} 30. Rd3 {[%emt 0:01:11]} fxe4 {[%emt 0:01:46] Really sharp!} 31. Rxb3 {[%emt 0:00:02]} Qc8 {[%emt 0:00:23]} 32. Re3 $2 {[%emt 0:02:16]} (32. g3 {keeps fighting.}) 32... f5 {[%emt 0:00:41][%cal Bf7f5,Bf5g4][%mdl 32]} 33. g4 {[%emt 0:00:47]} fxg4 {[%emt 0:01:08] White must now prevent ...Qb7.} 34. Kc1 {[%emt 0:01:05]} (34. Rd2 $142 Rf8 35. Kc2) 34... Qb7 {[%emt 0:01:32][%csl Gg7][%cal Rb7b2]} 35. Re2 {[%emt 0:00:10]} Ra8 {[%emt 0:00:54]} 36. Qxe4 {[%emt 0:00:56]} Ra1+ {[%emt 0:00:25]} 37. Kd2 {[%emt 0:00:01]} Rxd1+ {[%emt 0:00:36]} (37... Bxd5 $142 38. Qe8+ Bg8) 38. Kxd1 {[%emt 0:00:02]} Qxd5+ {[%emt 0:00:08]} 39. Qxd5 {[%emt 0:00:20]} Bxd5 {[%emt 0:00:05] Weighted Error Value: White=0.86/Black=0.31} 0-1

[Event "German Bundesliga 2022-23"]
[Site "Germany"]
[Date "2022.10.22"]
[Round "1"]
[White "Buckels, Valentin"]
[Black "Edouard, Romain"]
[Result "1/2-1/2"]
[ECO "A46"]
[WhiteElo "2456"]
[BlackElo "2554"]
[Annotator "TA"]
[PlyCount "74"]
[EventDate "2022.10.21"]
[EventType "team-tourn"]
[EventCountry "GER"]
[SourceTitle "playchess.com"]
[Source "ChessBase"]
[SourceQuality "1"]
[TimeControl "40/6000+30:3000+30"]

{[%evp 11,74,-7,-5,0,10,5,2,0,10,0,-19,-10,16,20,27,-4,0,0,20,4,20,19,16,9,18,10,19,-12,-21,-55,-60,-65,0,-46,-47,-26,0,0,0,0,0,-88,-80,-80,-82,-70,0,0,0,0,0,0,0,0,0,0,0,0,87,0,0,0,0,0,0]} 1. d4 {[%emt 0:00:03]} Nf6 {[%emt 0:00:08]} 2. Nf3 {[%emt 0:00:20]} e6 {[%emt 0:00:55]} 3. Bf4 {[%emt 0:00:26]} d5 {[%emt 0:00:16]} 4. e3 {[%emt 0:00:06]} Bd6 {[%emt 0:00:12]} 5. Ne5 {[%emt 0:02:24]} O-O {[%emt 0:00:56]} 6. Nd2 {[%emt 0:00:32]} c5 {[%emt 0:00:27]} 7. c3 {[%emt 0:00:29] D02: 1 d4 d5 2 Nf3 sidelines, including 2...Nf6 3 g3 and 2...Nf6 3 Bf4.} Nc6 {[%emt 0:02:23] 7...Qc7 injects fresh life into this line.} 8. Bd3 {[%emt 0:03:43]} Qc7 {[%emt 0:00:20][%cal Rc6e5]} 9. Ndf3 {[%emt 0:02:06]} h6 {[%emt 0:02:13]} 10. Bg3 {[%emt 0:13:14]} Ne4 {[%emt 0:03:05]} 11. Nxc6 {[%emt 0:05:43]} bxc6 {[%emt 0:01:40]} 12. Bxd6 {[%emt 0:11:40]} Qxd6 {[%emt 0:00:08]} 13. Qa4 {[%emt 0:10:41] [#]} (13. Bxe4 $5 dxe4 14. Nd2 $11) 13... Rb8 $146 {[%emt 0:03:23]} ({Predecessor:} 13... cxd4 14. Bxe4 dxe4 15. Qxd4 Qb8 16. Qxe4 Qxb2 17. O-O Qxc3 18. Rfc1 Qf6 19. Qxc6 Rb8 {½-½ (81) Thelen,T (1944)-Milliet,S (2397) Paleochora 2018}) 14. O-O {[%emt 0:06:41]} cxd4 {[%emt 0:13:41]} 15. cxd4 {[%emt 0:02:24]} Rxb2 {[%emt 0:00:11]} 16. Bxe4 {[%emt 0:10:15]} dxe4 {[%emt 0:00:39]} 17. Ne5 {[%emt 0:00:06]} Rb5 {[%emt 0:21:39]} 18. Rfc1 {[%emt 0:17:42][%mdl 1024] White has compensation.} Bb7 {[%emt 0:01:21]} 19. Qc2 {[%emt 0:00:54]} Rc8 {[%emt 0:15:38]} 20. a4 {[%emt 0:01:22]} Rd5 {[%emt 0:00:09]} 21. Rab1 {[%emt 0:01:19]} Qe7 {[%emt 0:14:17]} ({Black should play} 21... Ba6 $1 $15 22. Qxe4 c5) 22. Rb3 {[%emt 0:04:39]} (22. Qxe4 $11 c5 23. h3) 22... c5 $15 {[%emt 0:09:44]} 23. Rc3 $1 {[%emt 0:00:42]} ({Much weaker is} 23. Qxe4 cxd4 24. Rxc8+ Bxc8 $17) 23... Qf8 {[%emt 0:02:07]} 24. h3 {[%emt 0:07:16]} cxd4 {[%emt 0:00:57]} 25. Rxc8 {[%emt 0:00:11]} Bxc8 {[%emt 0:00:03]} 26. Qxc8 {[%emt 0:01:51]} (26. exd4 $11 Bd7 27. Qxe4) 26... Rxe5 $17 {[%emt 0:02:44]} 27. exd4 $11 {[%emt 0:01:18][%mdl 4096] Endgame KQR-KQR} Rd5 {[%emt 0:00:28]} 28. Qb7 {[%emt 0:00:50]} Rxd4 {[%emt 0:03:08]} (28... Qd6 $1 $15) 29. Rc8 $1 {[%emt 0:00:23]} Rd8 {[%emt 0:00:05]} 30. Rxd8 {[%emt 0:00:18]} Qxd8 {[%emt 0:00:02]} 31. Qxa7 {[%emt 0:00:09] KQ-KQ} f5 {[%emt 0:01:24]} 32. a5 {[%emt 0:01:16] And now Qb6 would win.} Qd1+ {[%emt 0:07:21]} 33. Kh2 {[%emt 0:00:02] Hoping for Qb8+.} Qd6+ {[%emt 0:00:06]} 34. Kg1 {[%emt 0:00:44] Strongly threatening Qb6.} Kh7 {[%emt 0:00:27] [#]} (34... Qd1+ $11 {keeps the balance.} 35. Kh2 Qd6+ 36. Kg1 Qd1+) 35. a6 {[%emt 0:02:39]} ({White should try} 35. Qb6 $1 $16 {[%cal Rb6d6]} Qd1+ 36. Kh2) 35... Qd1+ {[%emt 0:03:33] The position is equal.} 36. Kh2 {[%emt 0:00:02]} Qd6+ {[%emt 0:00:04]} 37. Kg1 {[%emt 0:00:11]} Qd1+ {[%emt 0:00:04] Weighted Error Value: White=0.13 (very precise) /Black=0.14 (very precise)} 1/2-1/2